[Event "*** Titled Tuesday Blitz"]
[Site "Chess.com"]
[Date "2021.03.02"]
[Round "1"]
[White "j_coca"]
[Black "Gurvich_Vitaly"]
[Result "1-0"]
[WhiteElo "2310"]
[BlackElo "2577"]
[TimeControl "180+1"]
[EndTime "10:07:26 PST"]
[Termination "j_coca won by resignation"]

1. f4 {[%clk 0:02:53.6]} 1... d5 {[%clk 0:02:58.9]} 2. Nf3 {[%clk 0:02:53.3]}
2... Bg4 {[%clk 0:02:59.2]} 3. e3 {[%clk 0:02:53.5]} 3... Nf6 {[%clk 0:02:58.7]}
4. d4 {[%clk 0:02:53.6]} 4... e6 {[%clk 0:02:58.6]} 5. Bd3 {[%clk 0:02:53.2]}
5... c5 {[%clk 0:02:57.5]} 6. c3 {[%clk 0:02:53.4]} 6... Nc6 {[%clk 0:02:57.3]}
7. O-O {[%clk 0:02:53]} 7... Bd6 {[%clk 0:02:57.1]} 8. h3 {[%clk 0:02:52.7]}
8... Bxf3 {[%clk 0:02:47.8]} 9. Qxf3 {[%clk 0:02:51.9]} 9... h5 {[%clk
0:02:48.7]} 10. Nd2 {[%clk 0:02:51.1]} 10... Rc8 {[%clk 0:02:46.7]} 11. Rf2
{[%clk 0:02:49]} 11... h4 {[%clk 0:02:44.1]} 12. a3 {[%clk 0:02:44.7]} 12... Ne7
{[%clk 0:02:37]} 13. b4 {[%clk 0:02:43.2]} 13... cxd4 {[%clk 0:02:34.9]} 14.
cxd4 {[%clk 0:02:42.7]} 14... Nf5 {[%clk 0:02:35.8]} 15. Bb2 {[%clk 0:02:37.4]}
15... Ke7 {[%clk 0:02:34.1]} 16. Re1 {[%clk 0:02:31.7]} 16... Qb6 {[%clk
0:02:32.4]} 17. Nb3 {[%clk 0:02:25.4]} 17... Ng3 {[%clk 0:02:30.4]} 18. Nc5
{[%clk 0:02:24.4]} 18... Qc7 {[%clk 0:02:04.5]} 19. e4 {[%clk 0:02:14.5]} 19...
Bxc5 {[%clk 0:02:02.7]} 20. dxc5 {[%clk 0:02:08.2]} 20... Nfxe4 {[%clk
0:01:45.7]} 21. Bxe4 {[%clk 0:02:05.1]} 21... Nxe4 {[%clk 0:01:44.8]} 22. Rfe2
{[%clk 0:01:41.3]} 22... f5 {[%clk 0:01:37.7]} 23. Bxg7 {[%clk 0:01:35.5]} 23...
Rh7 {[%clk 0:01:36.6]} 24. Be5 {[%clk 0:01:35.5]} 24... Qc6 {[%clk 0:01:34]} 25.
Kh2 {[%clk 0:01:29.5]} 25... Rg8 {[%clk 0:01:32.5]} 26. Qd3 {[%clk 0:01:23]}
26... Rg3 {[%clk 0:01:30.5]} 27. Re3 {[%clk 0:01:20.3]} 27... Kf7 {[%clk
0:01:24.4]} 28. R1e2 {[%clk 0:01:19.6]} 28... Rh6 {[%clk 0:01:22.4]} 29. Rxg3
{[%clk 0:01:15.8]} 29... hxg3+ {[%clk 0:01:21.7]} 30. Kg1 {[%clk 0:01:14.4]}
30... Qa4 {[%clk 0:01:17]} 31. Rc2 {[%clk 0:01:04.9]} 31... Rg6 {[%clk
0:01:05.2]} 32. Bd6 {[%clk 0:01:02.2]} 32... Rg8 {[%clk 0:01:03.9]} 33. Rc1
{[%clk 0:01:00.5]} 33... Rc8 {[%clk 0:01:00.6]} 34. Be5 {[%clk 0:00:55]} 34...
a5 {[%clk 0:00:50.4]} 35. Rb1 {[%clk 0:00:53.1]} 35... axb4 {[%clk 0:00:49.1]}
36. Rxb4 {[%clk 0:00:47.9]} 36... Qa7 {[%clk 0:00:42.4]} 37. Bd4 {[%clk
0:00:41.7]} 37... Nxc5 {[%clk 0:00:37.2]} 38. Qxg3 {[%clk 0:00:38.2]} 38... Rg8
{[%clk 0:00:37]} 39. Qe3 {[%clk 0:00:34.9]} 39... b6 {[%clk 0:00:36.7]} 40. Qe5
{[%clk 0:00:34]} 40... Qxa3 {[%clk 0:00:21.7]} 41. Qf6+ {[%clk 0:00:32.3]} 41...
Ke8 {[%clk 0:00:20.9]} 42. Bxc5 {[%clk 0:00:29.2]} 42... Qc1+ {[%clk 0:00:19]}
43. Kh2 {[%clk 0:00:27.2]} 43... Qxc5 {[%clk 0:00:19.2]} 44. Qxe6+ {[%clk
0:00:24.2]} 44... Kf8 {[%clk 0:00:19.2]} 45. Rxb6 {[%clk 0:00:23.8]} 45... Rxg2+
{[%clk 0:00:09.9]} 46. Kxg2 {[%clk 0:00:23.1]} 46... Qc2+ {[%clk 0:00:10.4]} 47.
Kg3 {[%clk 0:00:22.9]} 47... Qc3+ {[%clk 0:00:10.5]} 48. Kh4 {[%clk 0:00:22.1]}
1-0

[Event "*** Titled Tuesday Blitz"]
[Site "Chess.com"]
[Date "2021.03.02"]
[Round "1"]
[White "ApacheSVD"]
[Black "liczner"]
[Result "0-1"]
[WhiteElo "2407"]
[BlackElo "2776"]
[TimeControl "180+1"]
[EndTime "10:07:27 PST"]
[Termination "liczner won on time"]

1. e4 {[%clk 0:03:00.7]} 1... c6 {[%clk 0:02:58.1]} 2. d4 {[%clk 0:03:00.4]}
2... d5 {[%clk 0:02:58]} 3. f3 {[%clk 0:03:00.4]} 3... e6 {[%clk 0:02:57.2]} 4.
Nc3 {[%clk 0:02:59.3]} 4... Bb4 {[%clk 0:02:55]} 5. Qd3 {[%clk 0:02:53.2]} 5...
b6 {[%clk 0:02:48.9]} 6. Ne2 {[%clk 0:02:53]} 6... Ba6 {[%clk 0:02:45.2]} 7. Qe3
{[%clk 0:02:52.8]} 7... Ne7 {[%clk 0:02:42.2]} 8. Bd2 {[%clk 0:02:51.1]} 8...
O-O {[%clk 0:02:31.1]} 9. O-O-O {[%clk 0:02:43.4]} 9... c5 {[%clk 0:02:20.7]}
10. exd5 {[%clk 0:02:37.2]} 10... exd5 {[%clk 0:01:52.6]} 11. a3 {[%clk
0:02:27.1]} 11... Bxe2 {[%clk 0:01:04.1]} 12. Bxe2 {[%clk 0:02:15.6]} 12... Nf5
{[%clk 0:00:44.9]} 13. Qf4 {[%clk 0:01:48.6]} 13... Bxc3 {[%clk 0:00:43.7]} 14.
Bxc3 {[%clk 0:01:32]} 14... Nxd4 {[%clk 0:00:43.8]} 15. Bxd4 {[%clk 0:01:12.2]}
15... cxd4 {[%clk 0:00:42.6]} 16. Qxd4 {[%clk 0:01:11.8]} 16... Nc6 {[%clk
0:00:39.5]} 17. Qxd5 {[%clk 0:01:08.4]} 17... Qf6 {[%clk 0:00:39.8]} 18. Bd3
{[%clk 0:00:47.3]} 18... g6 {[%clk 0:00:33.8]} 19. Kb1 {[%clk 0:00:46.5]} 19...
Rfd8 {[%clk 0:00:30.5]} 20. Qe4 {[%clk 0:00:31]} 20... Rd4 {[%clk 0:00:29.9]}
21. Qe3 {[%clk 0:00:27.7]} 21... Rad8 {[%clk 0:00:30.1]} 22. Rhe1 {[%clk
0:00:26.6]} 22... Qh4 {[%clk 0:00:23.9]} 23. g3 {[%clk 0:00:15.1]} 23... Qxh2
{[%clk 0:00:21.1]} 24. f4 {[%clk 0:00:15.7]} 24... Qh5 {[%clk 0:00:18.7]} 25.
Rh1 {[%clk 0:00:15]} 25... Qd5 {[%clk 0:00:17.9]} 26. Rde1 {[%clk 0:00:09.9]}
26... Na5 {[%clk 0:00:16.9]} 27. f5 {[%clk 0:00:05.5]} 27... Nc4 {[%clk
0:00:12.8]} 28. Qh6 {[%clk 0:00:04.1]} 28... Ne5 {[%clk 0:00:04.3]} 29. Qxh7+
{[%clk 0:00:03.3]} 29... Kf8 {[%clk 0:00:02.2]} 30. f6 {[%clk 0:00:03.4]} 30...
Ke8 {[%clk 0:00:01.2]} 0-1

[Event "*** Titled Tuesday Blitz"]
[Site "Chess.com"]
[Date "2021.03.02"]
[Round "1"]
[White "Faqade"]
[Black "TeukkaSalama"]
[Result "1-0"]
[WhiteElo "2697"]
[BlackElo "2367"]
[TimeControl "180+1"]
[EndTime "10:07:27 PST"]
[Termination "Faqade won on time"]

1. e4 {[%clk 0:03:00.9]} 1... e6 {[%clk 0:02:59.3]} 2. d4 {[%clk 0:02:58.8]}
2... d5 {[%clk 0:02:59.7]} 3. Nd2 {[%clk 0:02:58.9]} 3... c5 {[%clk 0:02:59.2]}
4. Ngf3 {[%clk 0:02:58.6]} 4... cxd4 {[%clk 0:02:59.4]} 5. Nxd4 {[%clk
0:02:57.9]} 5... Nc6 {[%clk 0:02:58.8]} 6. Bb5 {[%clk 0:02:53.8]} 6... Bd7
{[%clk 0:02:58.6]} 7. Nxc6 {[%clk 0:02:53.1]} 7... bxc6 {[%clk 0:02:58.8]} 8.
Bd3 {[%clk 0:02:53]} 8... e5 {[%clk 0:02:56.3]} 9. exd5 {[%clk 0:02:51.7]} 9...
cxd5 {[%clk 0:02:55.9]} 10. c4 {[%clk 0:02:52.6]} 10... Nf6 {[%clk 0:02:45.3]}
11. cxd5 {[%clk 0:02:46.4]} 11... Nxd5 {[%clk 0:02:45.2]} 12. Qe2 {[%clk
0:02:46.1]} 12... f6 {[%clk 0:02:28.1]} 13. Be4 {[%clk 0:02:15]} 13... Nf4
{[%clk 0:02:07.5]} 14. Qa6 {[%clk 0:02:13.5]} 14... Rb8 {[%clk 0:01:40.5]} 15.
Qxa7 {[%clk 0:01:34.6]} 15... Bb5 {[%clk 0:01:35.5]} 16. g3 {[%clk 0:01:17.2]}
16... Ne6 {[%clk 0:01:19.6]} 17. a4 {[%clk 0:01:09.3]} 17... Bc5 {[%clk
0:01:13]} 18. axb5 {[%clk 0:01:09.1]} 18... Bxa7 {[%clk 0:01:07.6]} 19. Bc6+
{[%clk 0:01:01.4]} 19... Kf7 {[%clk 0:00:33.8]} 20. Rxa7+ {[%clk 0:01:02.3]}
20... Kg6 {[%clk 0:00:34.3]} 21. Nf3 {[%clk 0:00:50.3]} 21... Nd4 {[%clk
0:00:19.9]} 22. Be4+ {[%clk 0:00:27.2]} 22... f5 {[%clk 0:00:17.1]} 23. Nxe5+
{[%clk 0:00:17.5]} 23... Kf6 {[%clk 0:00:14.6]} 24. Bg5+ {[%clk 0:00:17.4]}
24... Kxe5 {[%clk 0:00:13.6]} 25. Bxd8 {[%clk 0:00:17.1]} 25... Rhxd8 {[%clk
0:00:13.1]} 26. Bd3 {[%clk 0:00:17]} 26... Nf3+ {[%clk 0:00:09.7]} 27. Ke2
{[%clk 0:00:16.6]} 27... Nd4+ {[%clk 0:00:09.9]} 28. Ke3 {[%clk 0:00:16.6]}
28... g5 {[%clk 0:00:05.6]} 29. f4+ {[%clk 0:00:15.9]} 29... gxf4+ {[%clk
0:00:06.1]} 30. gxf4+ {[%clk 0:00:16.8]} 30... Kf6 {[%clk 0:00:06.4]} 31. Ra6+
{[%clk 0:00:16.6]} 31... Kf7 {[%clk 0:00:04.8]} 32. b6 {[%clk 0:00:15]} 32...
Nc6 {[%clk 0:00:03.7]} 33. Bc4+ {[%clk 0:00:10.5]} 33... Kf8 {[%clk 0:00:03.5]}
34. Rg1 {[%clk 0:00:09.9]} 34... Re8+ {[%clk 0:00:04.4]} 35. Kf2 {[%clk
0:00:09.6]} 35... Nd4 {[%clk 0:00:02.9]} 36. Ra7 {[%clk 0:00:08.9]} 36... Ne6
{[%clk 0:00:01.3]} 37. b7 {[%clk 0:00:05.7]} 1-0

[Event "*** Titled Tuesday Blitz"]
[Site "Chess.com"]
[Date "2021.03.02"]
[Round "1"]
[White "Benjoneliere44"]
[Black "Manukyan_Artak"]
[Result "0-1"]
[WhiteElo "2602"]
[BlackElo "2330"]
[TimeControl "180+1"]
[EndTime "10:07:28 PST"]
[Termination "Manukyan_Artak won by resignation"]

1. e4 {[%clk 0:03:00.9]} 1... c6 {[%clk 0:02:57.4]} 2. c4 {[%clk 0:03:00.2]}
2... d5 {[%clk 0:02:56.6]} 3. exd5 {[%clk 0:03:01.1]} 3... cxd5 {[%clk
0:02:56.4]} 4. cxd5 {[%clk 0:03:02]} 4... Nf6 {[%clk 0:02:56.8]} 5. Nc3 {[%clk
0:03:02.5]} 5... Nxd5 {[%clk 0:02:54.7]} 6. Nf3 {[%clk 0:03:00.3]} 6... Nxc3
{[%clk 0:02:54]} 7. bxc3 {[%clk 0:02:59.4]} 7... e6 {[%clk 0:02:53.3]} 8. d4
{[%clk 0:02:58.6]} 8... Be7 {[%clk 0:02:53.5]} 9. Bd3 {[%clk 0:02:58.1]} 9...
O-O {[%clk 0:02:52.4]} 10. Qe2 {[%clk 0:02:56.5]} 10... Nd7 {[%clk 0:02:49.5]}
11. h4 {[%clk 0:02:40.7]} 11... h6 {[%clk 0:02:42.9]} 12. Rh3 {[%clk 0:02:31.3]}
12... Nf6 {[%clk 0:02:37.1]} 13. Rg3 {[%clk 0:02:30.1]} 13... Nh5 {[%clk
0:02:23.9]} 14. Rg4 {[%clk 0:02:09.2]} 14... e5 {[%clk 0:02:22.4]} 15. Nxe5
{[%clk 0:01:56.5]} 15... Bxg4 {[%clk 0:02:20]} 16. Qxg4 {[%clk 0:01:57.4]} 16...
Qa5 {[%clk 0:02:09.5]} 17. Qxh5 {[%clk 0:01:16]} 17... Qxc3+ {[%clk 0:02:07.2]}
18. Ke2 {[%clk 0:01:15.8]} 18... Qxa1 {[%clk 0:01:40.8]} 19. Qf5 {[%clk
0:01:09.3]} 19... Qxa2+ {[%clk 0:01:38.4]} 20. Bd2 {[%clk 0:01:02.7]} 20... g6
{[%clk 0:01:38.3]} 21. Nxg6 {[%clk 0:01:00.5]} 21... Qe6+ {[%clk 0:01:36.1]} 22.
Qxe6 {[%clk 0:00:58.6]} 22... fxe6 {[%clk 0:01:37]} 23. Nxe7+ {[%clk 0:00:56.9]}
23... Kf7 {[%clk 0:01:37.5]} 24. Ng6 {[%clk 0:00:57]} 24... Rfd8 {[%clk
0:01:28.5]} 25. Ne5+ {[%clk 0:00:55.2]} 25... Kg7 {[%clk 0:01:28.2]} 26. Ke3
{[%clk 0:00:42.2]} 26... a5 {[%clk 0:01:27.5]} 27. Bc3 {[%clk 0:00:38.7]} 27...
a4 {[%clk 0:01:22.2]} 28. Bc4 {[%clk 0:00:38]} 28... Rdc8 {[%clk 0:00:30.7]} 29.
Kd3 {[%clk 0:00:33.7]} 29... a3 {[%clk 0:00:28.8]} 30. g4 {[%clk 0:00:32.4]}
30... a2 {[%clk 0:00:27.9]} 31. Ba1 {[%clk 0:00:32.8]} 31... b5 {[%clk
0:00:25.5]} 32. Bxe6 {[%clk 0:00:31.8]} 32... Rc1 {[%clk 0:00:25.4]} 33. Bxa2
{[%clk 0:00:30.1]} 33... Rxa2 {[%clk 0:00:20.5]} 34. Bc3 {[%clk 0:00:30.5]}
34... Ra3 {[%clk 0:00:20.7]} 35. f4 {[%clk 0:00:29.8]} 35... Rcxc3+ {[%clk
0:00:20.4]} 36. Ke4 {[%clk 0:00:30.7]} 36... Rg3 {[%clk 0:00:19.6]} 37. g5
{[%clk 0:00:30.1]} 37... hxg5 {[%clk 0:00:20]} 38. hxg5 {[%clk 0:00:30.8]} 38...
b4 {[%clk 0:00:20.2]} 39. Nc4 {[%clk 0:00:29.5]} 39... Ra8 {[%clk 0:00:18.8]}
40. d5 {[%clk 0:00:28.5]} 40... b3 {[%clk 0:00:19]} 41. d6 {[%clk 0:00:28.9]}
41... Rb8 {[%clk 0:00:18.8]} 42. Ke5 {[%clk 0:00:27.7]} 42... b2 {[%clk
0:00:19.1]} 43. Nxb2 {[%clk 0:00:27.7]} 43... Rxb2 {[%clk 0:00:18.9]} 44. d7
{[%clk 0:00:28.5]} 44... Rd2 {[%clk 0:00:19.2]} 45. Ke6 {[%clk 0:00:28.7]} 45...
Re3+ {[%clk 0:00:19.5]} 46. Kf5 {[%clk 0:00:29]} 46... Rxd7 {[%clk 0:00:19.7]}
47. Kg4 {[%clk 0:00:28.7]} 47... Rd4 {[%clk 0:00:18.6]} 48. Kh5 {[%clk
0:00:27.8]} 48... Rxf4 {[%clk 0:00:18.5]} 49. g6 {[%clk 0:00:27.8]} 49... Rf6
{[%clk 0:00:17.9]} 50. Kh4 {[%clk 0:00:27.6]} 50... Re5 {[%clk 0:00:18.2]} 51.
Kg4 {[%clk 0:00:27.7]} 51... Ref5 {[%clk 0:00:18]} 52. Kh3 {[%clk 0:00:27.9]}
52... Rg5 {[%clk 0:00:17.7]} 0-1

[Event "*** Titled Tuesday Blitz"]
[Site "Chess.com"]
[Date "2021.03.02"]
[Round "1"]
[White "chessprincesa1"]
[Black "Aradhya2000"]
[Result "1-0"]
[WhiteElo "2242"]
[BlackElo "2525"]
[TimeControl "180+1"]
[EndTime "10:07:30 PST"]
[Termination "chessprincesa1 won by resignation"]

1. d4 {[%clk 0:02:59]} 1... d5 {[%clk 0:02:59.1]} 2. c4 {[%clk 0:02:59]} 2... c6
{[%clk 0:02:58.6]} 3. Nc3 {[%clk 0:02:58.8]} 3... Nf6 {[%clk 0:02:58.6]} 4. Nf3
{[%clk 0:02:57.5]} 4... dxc4 {[%clk 0:02:57.9]} 5. a4 {[%clk 0:02:45.5]} 5...
Bf5 {[%clk 0:02:57.1]} 6. e3 {[%clk 0:02:33.4]} 6... e6 {[%clk 0:02:56.4]} 7.
Bxc4 {[%clk 0:02:32.4]} 7... Bb4 {[%clk 0:02:55.8]} 8. O-O {[%clk 0:02:31.8]}
8... O-O {[%clk 0:02:55.5]} 9. Bd3 {[%clk 0:02:27.5]} 9... Qe7 {[%clk
0:02:44.4]} 10. Bxf5 {[%clk 0:02:18.5]} 10... exf5 {[%clk 0:02:45.3]} 11. Ne2
{[%clk 0:02:17.2]} 11... Nbd7 {[%clk 0:02:37.3]} 12. Bd2 {[%clk 0:02:16.9]}
12... a5 {[%clk 0:02:36.6]} 13. Bxb4 {[%clk 0:02:09.4]} 13... Qxb4 {[%clk
0:02:35.8]} 14. Qc2 {[%clk 0:02:04.5]} 14... g6 {[%clk 0:02:32.6]} 15. Nf4
{[%clk 0:01:42.8]} 15... Rfe8 {[%clk 0:02:17.3]} 16. Rac1 {[%clk 0:01:34]} 16...
Qd6 {[%clk 0:01:46.7]} 17. Rfd1 {[%clk 0:01:32.1]} 17... Re7 {[%clk 0:01:43.1]}
18. Nd3 {[%clk 0:01:31.3]} 18... Nd5 {[%clk 0:01:42.1]} 19. Qb3 {[%clk 0:01:12]}
19... N7f6 {[%clk 0:01:40.4]} 20. Nfe5 {[%clk 0:01:04.2]} 20... Kg7 {[%clk
0:01:10.6]} 21. Nc5 {[%clk 0:01:01.2]} 21... Qc7 {[%clk 0:01:01.9]} 22. Qc2
{[%clk 0:00:23.7]} 22... Rae8 {[%clk 0:00:55.6]} 23. Ncd3 {[%clk 0:00:19.8]}
23... Ne4 {[%clk 0:00:47.4]} 24. Qc4 {[%clk 0:00:14.2]} 24... f6 {[%clk
0:00:33.1]} 25. Nf3 {[%clk 0:00:14]} 25... f4 {[%clk 0:00:33.2]} 26. exf4 {[%clk
0:00:11]} 26... Nxf4 {[%clk 0:00:34.1]} 27. Nxf4 {[%clk 0:00:11.1]} 27... Qxf4
{[%clk 0:00:34.7]} 28. d5 {[%clk 0:00:09.4]} 28... cxd5 {[%clk 0:00:29.2]} 29.
Qxd5 {[%clk 0:00:09.7]} 29... g5 {[%clk 0:00:23.8]} 30. h3 {[%clk 0:00:09.4]}
30... h5 {[%clk 0:00:23.3]} 31. Qd4 {[%clk 0:00:07.3]} 31... g4 {[%clk 0:00:21]}
32. hxg4 {[%clk 0:00:07.6]} 32... hxg4 {[%clk 0:00:21.9]} 33. Nh4 {[%clk
0:00:07.7]} 33... Qg5 {[%clk 0:00:09]} 34. g3 {[%clk 0:00:07.1]} 34... Qe5
{[%clk 0:00:07.6]} 35. Qxe5 {[%clk 0:00:06.8]} 35... Rxe5 {[%clk 0:00:07.8]} 36.
Rc7+ {[%clk 0:00:07.1]} 36... Kg8 {[%clk 0:00:06.5]} 37. Rdd7 {[%clk 0:00:07.4]}
37... Nc5 {[%clk 0:00:05.8]} 38. Rg7+ {[%clk 0:00:07.6]} 1-0

[Event "*** Titled Tuesday Blitz"]
[Site "Chess.com"]
[Date "2021.03.02"]
[Round "1"]
[White "shnitez"]
[Black "Soltan49"]
[Result "1/2-1/2"]
[WhiteElo "2526"]
[BlackElo "2224"]
[TimeControl "180+1"]
[EndTime "10:07:30 PST"]
[Termination "Game drawn by repetition"]

1. e4 {[%clk 0:02:59.7]} 1... c5 {[%clk 0:02:51.9]} 2. Nf3 {[%clk 0:02:59.6]}
2... Nc6 {[%clk 0:02:51.8]} 3. Bb5 {[%clk 0:02:59.1]} 3... e6 {[%clk 0:02:44.5]}
4. O-O {[%clk 0:02:58.2]} 4... Nge7 {[%clk 0:02:36.4]} 5. Re1 {[%clk 0:02:57.7]}
5... a6 {[%clk 0:02:36.6]} 6. Bf1 {[%clk 0:02:58.2]} 6... d5 {[%clk 0:02:36.9]}
7. d3 {[%clk 0:02:58.7]} 7... Ng6 {[%clk 0:02:36.2]} 8. h4 {[%clk 0:02:56.9]}
8... h5 {[%clk 0:02:35.2]} 9. exd5 {[%clk 0:02:51.8]} 9... Qxd5 {[%clk
0:02:34.9]} 10. Nc3 {[%clk 0:02:52.3]} 10... Qd8 {[%clk 0:02:33.4]} 11. g3
{[%clk 0:02:44.3]} 11... b5 {[%clk 0:02:31.4]} 12. Bg2 {[%clk 0:02:43.1]} 12...
Bb7 {[%clk 0:02:31.7]} 13. Ne4 {[%clk 0:02:35]} 13... Be7 {[%clk 0:02:30]} 14.
Bd2 {[%clk 0:02:27]} 14... b4 {[%clk 0:01:41.7]} 15. a3 {[%clk 0:02:22.1]} 15...
a5 {[%clk 0:01:40.5]} 16. Be3 {[%clk 0:02:04.5]} 16... Nd4 {[%clk 0:01:39.4]}
17. Bxd4 {[%clk 0:01:59.5]} 17... cxd4 {[%clk 0:01:38.6]} 18. Nfg5 {[%clk
0:01:59.8]} 18... Qb6 {[%clk 0:01:24]} 19. axb4 {[%clk 0:01:56.6]} 19... axb4
{[%clk 0:01:23.2]} 20. Rxa8+ {[%clk 0:01:56.1]} 20... Bxa8 {[%clk 0:01:24.1]}
21. Nd6+ {[%clk 0:01:37.3]} 21... Qxd6 {[%clk 0:01:19.2]} 22. Bxa8 {[%clk
0:01:37]} 22... Bxg5 {[%clk 0:01:02.2]} 23. hxg5 {[%clk 0:01:36.9]} 23... h4
{[%clk 0:00:52.7]} 24. Qf3 {[%clk 0:01:25.9]} 24... hxg3 {[%clk 0:00:31.6]} 25.
fxg3 {[%clk 0:01:16]} 25... Rh3 {[%clk 0:00:30.3]} 26. Qc6+ {[%clk 0:01:09.2]}
26... Ke7 {[%clk 0:00:21.5]} 27. Qxd6+ {[%clk 0:00:57.8]} 27... Kxd6 {[%clk
0:00:21.7]} 28. Kg2 {[%clk 0:00:57.6]} 28... Rh8 {[%clk 0:00:21.7]} 29. Be4
{[%clk 0:00:35.6]} 29... b3 {[%clk 0:00:17.6]} 30. Bxg6 {[%clk 0:00:22.2]} 30...
fxg6 {[%clk 0:00:18.5]} 31. cxb3 {[%clk 0:00:22.4]} 31... Rb8 {[%clk 0:00:18.9]}
32. Kf3 {[%clk 0:00:19.4]} 32... Rxb3 {[%clk 0:00:18.4]} 33. Ke4 {[%clk
0:00:20.1]} 33... Rxb2 {[%clk 0:00:09.9]} 34. Ra1 {[%clk 0:00:19.9]} 34... Rb5
{[%clk 0:00:02.2]} 35. Ra6+ {[%clk 0:00:17.9]} 35... Kd7 {[%clk 0:00:02.8]} 36.
Ra7+ {[%clk 0:00:17.5]} 36... Kd6 {[%clk 0:00:03.4]} 37. Ra6+ {[%clk 0:00:12.4]}
37... Kd7 {[%clk 0:00:03.3]} 38. Ra7+ {[%clk 0:00:08.1]} 38... Kd6 {[%clk
0:00:03.9]} 39. Ra6+ {[%clk 0:00:07.8]} 1/2-1/2

[Event "*** Titled Tuesday Blitz"]
[Site "Chess.com"]
[Date "2021.03.02"]
[Round "1"]
[White "GigaQuparadze"]
[Black "mbachez"]
[Result "1-0"]
[WhiteElo "2974"]
[BlackElo "2469"]
[TimeControl "180+1"]
[EndTime "10:07:32 PST"]
[Termination "GigaQuparadze won by resignation"]

1. e4 {[%clk 0:03:00.9]} 1... e6 {[%clk 0:02:57.2]} 2. d4 {[%clk 0:03:00.5]}
2... d5 {[%clk 0:02:56.5]} 3. Nd2 {[%clk 0:03:01]} 3... h6 {[%clk 0:02:55.6]} 4.
Ngf3 {[%clk 0:03:00.3]} 4... Nf6 {[%clk 0:02:55.2]} 5. Bd3 {[%clk 0:02:58.8]}
5... c5 {[%clk 0:02:54]} 6. e5 {[%clk 0:02:57.8]} 6... Nfd7 {[%clk 0:02:53.2]}
7. c3 {[%clk 0:02:58.1]} 7... Nc6 {[%clk 0:02:53.1]} 8. O-O {[%clk 0:02:57.5]}
8... g5 {[%clk 0:02:53.1]} 9. h3 {[%clk 0:02:56.5]} 9... h5 {[%clk 0:02:51.4]}
10. dxc5 {[%clk 0:02:45.4]} 10... g4 {[%clk 0:02:48.5]} 11. Nh2 {[%clk
0:02:38.1]} 11... Ndxe5 {[%clk 0:02:41.6]} 12. Bb5 {[%clk 0:02:35.8]} 12... Bxc5
{[%clk 0:02:32]} 13. Nb3 {[%clk 0:02:35.2]} 13... Bb6 {[%clk 0:02:30.6]} 14. Bf4
{[%clk 0:02:31.5]} 14... Ng6 {[%clk 0:02:25.3]} 15. Be3 {[%clk 0:02:12.1]} 15...
Bxe3 {[%clk 0:02:13.8]} 16. fxe3 {[%clk 0:02:13]} 16... Qg5 {[%clk 0:02:12.5]}
17. Nd4 {[%clk 0:02:05.8]} 17... gxh3 {[%clk 0:02:06.8]} 18. Qf3 {[%clk
0:02:05.1]} 18... Ne5 {[%clk 0:01:55.9]} 19. Qxh3 {[%clk 0:02:04.1]} 19... Bd7
{[%clk 0:01:51.3]} 20. Rae1 {[%clk 0:02:00]} 20... O-O-O {[%clk 0:01:44.4]} 21.
Nhf3 {[%clk 0:01:58.8]} 21... Qg7 {[%clk 0:01:34.3]} 22. Bxc6 {[%clk 0:01:45.7]}
22... Nxc6 {[%clk 0:01:21.5]} 23. Nb5 {[%clk 0:01:45.4]} 23... e5 {[%clk
0:01:10.9]} 24. Qh2 {[%clk 0:01:37.6]} 24... f6 {[%clk 0:01:10.3]} 25. Nh4
{[%clk 0:01:33]} 25... Be6 {[%clk 0:00:55.9]} 26. Nf5 {[%clk 0:01:32.4]} 26...
Bxf5 {[%clk 0:00:55]} 27. Rxf5 {[%clk 0:01:33.1]} 27... a6 {[%clk 0:00:54.2]}
28. Na3 {[%clk 0:01:32.5]} 28... Rdg8 {[%clk 0:00:53.2]} 29. Ref1 {[%clk
0:01:32]} 29... Rh6 {[%clk 0:00:51.8]} 30. Qh3 {[%clk 0:01:31.7]} 30... Kb8
{[%clk 0:00:48]} 31. R1f2 {[%clk 0:01:29.8]} 31... e4 {[%clk 0:00:44.3]} 32.
Rxh5 {[%clk 0:01:19.2]} 32... Rg6 {[%clk 0:00:41.2]} 33. Rh7 {[%clk 0:01:12.6]}
33... Qf8 {[%clk 0:00:37.3]} 34. Qd7 {[%clk 0:01:09.8]} 34... R8g7 {[%clk
0:00:27.9]} 35. Rxg7 {[%clk 0:01:09.1]} 35... Rxg7 {[%clk 0:00:27.9]} 36. Qxd5
{[%clk 0:01:08.3]} 36... Qh8 {[%clk 0:00:18.4]} 37. Qd6+ {[%clk 0:01:05.5]}
37... Ka8 {[%clk 0:00:17.4]} 38. Qxf6 {[%clk 0:01:04.7]} 38... Ka7 {[%clk
0:00:16.9]} 39. Nc2 {[%clk 0:01:03.7]} 39... Ne5 {[%clk 0:00:16.8]} 40. Nd4
{[%clk 0:00:53.4]} 40... Ng4 {[%clk 0:00:12.5]} 41. Nc6+ {[%clk 0:00:44.3]}
41... bxc6 {[%clk 0:00:11.4]} 42. Qd4+ {[%clk 0:00:44.1]} 42... Kb7 {[%clk
0:00:10.8]} 43. Rf7+ {[%clk 0:00:42]} 43... Rxf7 {[%clk 0:00:07.8]} 44. Qxh8
{[%clk 0:00:41.7]} 44... Rd7 {[%clk 0:00:07.3]} 45. Kf1 {[%clk 0:00:40.8]} 45...
Rd2 {[%clk 0:00:06]} 46. Qg7+ {[%clk 0:00:40.2]} 1-0